bitfinex-derivatives/quotes_BTCF0:USTF0_20241130
["timestamp","ask_amount","ask_price","bid_price","bid_amount"]
[1732949548675,0.3608,96833.0,96814.0,0.051621]
[1732949548676,0.3608,96822.0,96814.0,0.051621]
[1732949548876,0.3608,96822.0,96815.0,0.051621]
[1732949549176,0.3608,96822.0,96808.0,0.14408]
[1732949549177,0.3608,96822.0,96816.0,0.0328]
[1732949549387,0.3608,96822.0,96817.0,0.14408]
[1732949549599,0.3608,96822.0,96816.0,0.0328]
[1732949549780,0.3608,96822.0,96817.0,0.14408]
[1732949550287,0.3608,96833.0,96821.0,0.051618]
[1732949550791,0.006,96822.0,96821.0,0.051618]
[1732949550980,0.015,96822.0,96821.0,0.195698]
[1732949551381,0.009,96822.0,96821.0,0.195698]
[1732949551582,0.3608,96833.0,96821.0,0.195698]
[1732949551583,0.3618,96833.0,96821.0,0.198698]
[1732949552692,0.3618,96833.0,96821.0,0.14708]
[1732949552890,0.3608,96833.0,96821.0,0.14708]
[1732949553092,0.007,96822.0,96821.0,0.14408]
[1732949553289,0.016,96822.0,96821.0,0.14408]
[1732949553791,0.3618,96833.0,96821.0,0.14808]
[1732949554185,0.3618,96833.0,96821.0,0.199698]
[1732949554693,0.008,96822.0,96821.0,0.198698]
[1732949554888,0.017,96822.0,96821.0,0.195698]
[1732949555489,0.017,96822.0,96821.0,0.051618]
[1732949555695,0.017,96822.0,96821.0,0.20787567]
[1732949556097,0.009,96822.0,96821.0,0.20887567]
[1732949556493,0.3618,96833.0,96821.0,0.21187567]
[1732949557093,0.01495256,96822.0,96821.0,0.20787567]
[1732949557685,0.3618,96833.0,96821.0,0.15925767]
[1732949557887,0.3618,96833.0,96823.0,0.051616]
[1732949558287,0.001,96833.0,96824.0,0.051616]
[1732949559393,0.001,96833.0,96825.0,0.051616]
[1732949559586,0.001,96833.0,96821.0,0.52057767]
[1732949559789,0.3608,96835.0,96831.0,0.051612]
[1732949559982,0.3608,96835.0,96832.0,0.17522]
[1732949560188,0.3608,96847.0,96832.0,0.226832]
[1732949560591,0.3608,96847.0,96833.0,0.051611]
[1732949561084,0.002,96835.0,96833.0,0.051611]
[1732949561405,0.3608,96847.0,96833.0,0.051611]
[1732949562887,0.412404,96847.0,96832.0,0.18122]
[1732949563083,0.412404,96847.0,96833.0,0.003]
[1732949563383,0.3608,96847.0,96833.0,0.054611]
[1732949563584,0.006,96835.0,96833.0,0.054611]
[1732949564288,0.3608,96847.0,96837.0,0.051609]
[1732949564498,0.3608,96847.0,96838.0,0.0324]
[1732949566191,0.051612,96833.0,96832.0,0.01214785]
[1732949566393,0.051611,96834.0,96824.0,0.14408]
[1732949566594,0.3608,96835.0,96825.0,0.14408]
[1732949566898,0.051613,96831.0,96825.0,0.14408]
[1732949567090,0.051613,96830.0,96825.0,0.14408]
[1732949567785,0.051613,96830.0,96825.0,0.14708]
[1732949567984,0.051613,96830.0,96825.0,0.14712]
[1732949568387,0.3608,96827.0,96825.0,0.14712]
[1732949569296,0.3608,96827.0,96825.0,0.14412]
[1732949569597,0.3608,96827.0,96826.0,0.0303]
[1732949569992,0.3698,96827.0,96826.0,0.0303]
[1732949570295,0.3698,96827.0,96826.0,0.081915]
[1732949570493,0.009,96827.0,96826.0,0.081915]
[1732949570692,0.009,96827.0,96826.0,0.114715]
[1732949571194,0.3608,96841.0,96833.0,0.051611]
[1732949571397,0.3608,96841.0,96834.0,0.14412]
[1732949571587,0.3608,96841.0,96835.0,0.17632]
[1732949571902,0.3608,96841.0,96838.0,0.051609]
[1732949572700,0.3608,96841.0,96835.0,0.0322]
[1732949572897,0.3608,96841.0,96836.0,0.14412]
[1732949573988,0.3618,96841.0,96836.0,0.14412]
[1732949574489,0.3628,96841.0,96836.0,0.14412]
[1732949574695,0.3628,96841.0,96835.0,0.0372]
[1732949574995,0.3628,96841.0,96836.0,0.14408]
[1732949575593,0.3708,96841.0,96836.0,0.14408]
[1732949576388,0.3708,96841.0,96836.0,0.14608]
[1732949576389,0.3678,96841.0,96836.0,0.14608]
[1732949577000,0.3678,96841.0,96836.0,0.14408]
[1732949577197,0.3678,96841.0,96835.0,0.0322]
[1732949577198,0.3698,96841.0,96835.0,0.0322]
[1732949577391,0.07582759,96840.0,96835.0,0.01226522]
[1732949577701,0.07582759,96840.0,96826.0,0.0631]
[1732949578000,0.3608,96829.0,96826.0,0.0631]
[1732949578200,0.3608,96829.0,96826.0,0.0303]
[1732949578894,0.07584083,96828.0,96826.0,0.0303]
[1732949579099,0.07584083,96827.0,96826.0,0.0303]
[1732949579690,0.3608,96829.0,96826.0,0.0303]
[1732949580003,0.3758,96829.0,96827.0,0.051615]
[1732949580390,0.3668,96829.0,96827.0,0.051615]
[1732949580589,0.006,96827.0,96826.0,0.0303]
[1732949580799,0.006,96827.0,96826.0,0.17418]
[1732949582206,0.3698,96829.0,96826.0,0.17418]
[1732949582500,0.3758,96829.0,96826.0,0.17418]
[1732949582803,0.009,96827.0,96826.0,0.17418]
[1732949583206,0.006,96827.0,96826.0,0.17418]
[1732949583407,0.006,96827.0,96826.0,0.0303]
[1732949583598,0.006,96827.0,96826.0,0.17418]
[1732949584104,0.08183691,96827.0,96826.0,0.17418]
[1732949584503,0.08183691,96827.0,96826.0,0.0303]
[1732949584901,0.09083691,96827.0,96826.0,0.0303]
[1732949585501,0.08183691,96827.0,96826.0,0.0303]
[1732949585803,0.09083691,96827.0,96826.0,0.0303]
[1732949586502,0.09383691,96827.0,96826.0,0.0303]
[1732949588103,0.08483691,96827.0,96826.0,0.0303]
[1732949588310,0.09384063,96827.0,96826.0,0.0303]
[1732949590104,0.069615,96827.0,96826.0,0.0303]
[1732949591996,0.069615,96827.0,96823.0,0.01225266]
[1732949591997,0.018,96827.0,96823.0,0.01225266]
[1732949592203,0.051616,96824.0,96821.0,0.0331]
[1732949593007,0.009,96827.0,96821.0,0.04528044]
[1732949593198,0.051617,96823.0,96821.0,0.04528044]
[1732949594198,0.051617,96823.0,96821.0,0.01218044]
[1732949594199,0.3608,96822.0,96821.0,0.01218044]
[1732949594400,0.051621,96816.0,96815.0,0.0309]
[1732949594703,0.051621,96816.0,96806.0,0.0303]
[1732949594704,0.051621,96816.0,96806.0,0.10258871]
[1732949594910,0.3608,96813.0,96806.0,0.05096271]
[1732949595405,0.3608,96813.0,96806.0,0.06313067]
[1732949595602,0.3608,96813.0,96807.0,0.14388]
[1732949595603,0.051623,96812.0,96807.0,0.14388]
[1732949595797,0.051623,96812.0,96806.0,0.06313067]
[1732949596010,0.3608,96813.0,96806.0,0.06313067]
[1732949596511,0.3638,96813.0,96806.0,0.06313067]
[1732949596807,0.3728,96813.0,96806.0,0.06313067]
[1732949597009,0.424422,96813.0,96806.0,0.06313067]
[1732949597309,0.051623,96812.0,96806.0,0.06313067]
[1732949597809,0.051625,96808.0,96806.0,0.01216796]
[1732949597998,0.3608,96812.0,96789.0,0.412435]
[1732949597999,0.07585933,96807.0,96794.0,0.14388]
[1732949598199,0.3608,96801.0,96794.0,0.14388]
[1732949598410,0.3608,96801.0,96798.0,0.01229651]
[1732949599207,0.3608,96801.0,96792.0,0.14388]
[1732949600112,0.3738,96801.0,96792.0,0.14388]
[1732949600518,0.3738,96801.0,96795.0,0.051631]
[1732949601106,0.3738,96801.0,96797.0,0.01205775]
[1732949603809,0.3239,96801.0,96800.0,0.151629]
[1732949604002,0.013,96801.0,96800.0,0.151629]
[1732949609111,0.013,96801.0,96800.0,0.295389]
[1732949609707,0.00011369,96811.0,96810.0,0.051624]
[1732949609906,0.00011369,96811.0,96810.0,0.19861276]
[1732949610317,0.00011369,96811.0,96810.0,0.26191276]
[1732949610708,0.00011369,96811.0,96810.0,0.258684]
[1732949610905,0.00011369,96811.0,96810.0,0.2619123]
[1732949611112,0.00911369,96811.0,96810.0,0.2619123]
[1732949611306,0.051612,96832.0,96817.0,0.05162]
[1732949611505,0.051613,96831.0,96821.0,0.3608]
[1732949611717,0.051613,96831.0,96822.0,0.14376]
[1732949611921,0.051614,96829.0,96822.0,0.14376]
[1732949612818,0.051615,96827.0,96822.0,0.14376]
[1732949613038,0.051612,96832.0,96822.0,0.14376]
[1732949613322,0.051613,96830.0,96822.0,0.14376]
[1732949613520,0.051614,96829.0,96822.0,0.14376]
[1732949613710,0.051615,96826.0,96822.0,0.14376]
[1732949614119,0.0120363,96835.0,96822.0,0.14376]
[1732949614316,0.412412,96833.0,96822.0,0.14376]
[1732949614515,0.006,96829.0,96822.0,0.14476]
[1732949614716,0.006,96829.0,96822.0,0.14576]
[1732949615020,0.006,96829.0,96822.0,0.002]
[1732949615221,0.051617,96824.0,96822.0,0.001]
[1732949615420,0.051617,96824.0,96822.0,0.006]
[1732949615613,0.051617,96824.0,96822.0,0.011]
[1732949616320,0.051617,96824.0,96822.0,0.006]
[1732949616922,0.3608,96825.0,96822.0,0.001]
[1732949617521,0.3608,96825.0,96822.0,0.003]
[1732949618321,0.3608,96825.0,96822.0,0.007]
[1732949619223,0.3688,96825.0,96822.0,0.004]
[1732949619622,0.3688,96825.0,96822.0,0.001]
[1732949619822,0.3768,96825.0,96822.0,0.002]
[1732949621012,0.3688,96825.0,96822.0,0.001]
[1732949621227,0.051617,96823.0,96822.0,0.002]
[1732949622314,0.05162,96817.0,96816.0,0.02066029]
[1732949622515,0.41242,96817.0,96816.0,0.02066029]
[1732949622712,0.41242,96817.0,96803.0,0.051628]
[1732949622713,0.051621,96816.0,96803.0,0.051628]
[1732949622917,0.3608,96804.0,96803.0,0.051628]
[1732949624123,0.412427,96804.0,96801.0,0.01376259]
[1732949624524,0.051628,96803.0,96801.0,0.01376259]
[1732949625428,0.051628,96802.0,96801.0,0.00154953]
[1732949625619,0.083928,96802.0,96801.0,0.00154953]
[1732949626024,0.083928,96802.0,96800.0,0.1]
[1732949626428,0.083928,96802.0,96801.0,0.001]
[1732949627020,0.092928,96802.0,96801.0,0.001]
[1732949628522,0.457728,96802.0,96801.0,0.001]
[1732949630025,0.448728,96802.0,96800.0,0.1]
[1732949630225,0.448728,96802.0,96801.0,0.004]
[1732949630927,0.445728,96802.0,96801.0,0.009]
[1732949631829,0.445728,96802.0,96801.0,0.011]
[1732949632529,0.445728,96802.0,96801.0,0.009]
[1732949632530,0.446728,96802.0,96801.0,0.009]
[1732949635732,0.590488,96802.0,96801.0,0.009]
[1732949637430,0.446728,96802.0,96801.0,0.009]
[1732949637623,0.590488,96802.0,96801.0,0.009]
[1732949638233,0.446728,96802.0,96801.0,0.009]
[1732949638823,0.414428,96802.0,96801.0,0.009]
[1732949639029,0.558028,96802.0,96801.0,0.009]
[1732949639424,0.414428,96802.0,96801.0,0.009]
[1732949640434,0.3628,96802.0,96801.0,0.009]
[1732949640623,0.3628,96802.0,96801.0,0.073]
[1732949644038,0.3628,96802.0,96801.0,0.009]
[1732949644932,0.3959,96802.0,96801.0,0.009]
[1732949649144,0.49100663,96802.0,96801.0,0.009]
[1732949650937,0.3959,96802.0,96801.0,0.009]
[1732949651340,0.49100809,96802.0,96801.0,0.009]
[1732949651538,0.3959,96802.0,96801.0,0.009]
[1732949651839,0.73421755,96802.0,96801.0,0.009]
[1732949652038,0.82932564,96802.0,96801.0,0.009]
[1732949652844,1.12932564,96802.0,96781.0,0.01223235]
[1732949653041,0.06819976,96765.0,96751.0,0.0915]
[1732949653248,0.412453,96757.0,96752.0,0.051655]
[1732949653939,7.627e-05,96756.0,96752.0,0.051655]
[1732949654332,0.051654,96753.0,96751.0,0.0935]
[1732949655537,0.051654,96753.0,96752.0,0.003]
[1732949655846,0.051654,96753.0,96752.0,0.005]
[1732949656235,7.627e-05,96756.0,96752.0,0.003]
[1732949656438,0.001,96753.0,96752.0,0.003]
[1732949656830,7.627e-05,96756.0,96752.0,0.003]
[1732949657037,0.001,96753.0,96751.0,0.0915]
[1732949659436,7.627e-05,96756.0,96751.0,0.0915]
[1732949659744,0.051654,96753.0,96751.0,0.0915]
[1732949660137,0.051654,96753.0,96751.0,0.0925]
[1732949664237,7.627e-05,96756.0,96751.0,0.0925]
[1732949666038,7.627e-05,96756.0,96751.0,0.0915]
[1732949666240,7.627e-05,96756.0,96751.0,0.0925]
[1732949667344,0.051655,96753.0,96751.0,0.0925]
[1732949672960,7.627e-05,96756.0,96723.0,0.1850161]
[1732949672961,0.3608,96755.0,96723.0,0.1850161]
[1732949673263,0.3608,96734.0,96708.0,0.3608]
[1732949673456,0.3608,96734.0,96697.0,0.3608]
[1732949673457,0.051676,96713.0,96697.0,0.3608]
[1732949673646,0.3608,96715.0,96700.0,0.11252337]
[1732949673842,0.051678,96708.0,96700.0,0.11252337]
[1732949674348,0.412482,96701.0,96700.0,0.1]
[1732949675062,0.3608,96701.0,96700.0,0.1]
[1732949675947,0.3608,96701.0,96700.0,0.101]
[1732949676150,0.3608,96701.0,96660.0,0.1850161]
[1732949676151,0.051687,96691.0,96660.0,0.1850161]
[1732949676354,8.541e-05,96707.0,96668.0,0.0517]
[1732949676355,0.3608,96676.0,96668.0,0.0517]
[1732949676564,0.3608,96676.0,96670.0,0.051699]
[1732949676954,0.3608,96695.0,96675.0,0.051696]
[1732949677154,0.3608,96695.0,96666.0,0.00155173]
[1732949677352,0.3608,96687.0,96668.0,0.0517]
[1732949677554,0.3608,96687.0,96670.0,0.15656]
[1732949678450,0.3608,96674.0,96668.0,0.0517]
[1732949678957,0.3608,96674.0,96670.0,0.15656]
[1732949679364,0.3608,96674.0,96671.0,0.0984]
[1732949680047,0.3638,96674.0,96671.0,0.0984]
[1732949681559,0.3638,96674.0,96672.0,0.1566]
[1732949681951,0.3608,96674.0,96672.0,0.1566]
[1732949682159,0.3608,96687.0,96673.0,0.051697]
[1732949682454,0.3608,96687.0,96675.0,0.051696]
[1732949682659,0.3608,96687.0,96676.0,0.1566]
[1732949683762,0.3628,96687.0,96676.0,0.1566]
[1732949684064,0.3678,96687.0,96676.0,0.1566]
[1732949685063,0.3678,96687.0,96677.0,0.1566]
[1732949685258,0.3628,96687.0,96677.0,0.1566]
[1732949685453,0.3688,96687.0,96677.0,0.1566]
[1732949685661,0.3688,96687.0,96678.0,0.1566]
[1732949685855,0.3628,96687.0,96678.0,0.1566]
[1732949686056,0.3718,96687.0,96678.0,0.1566]
[1732949686566,0.3718,96687.0,96677.0,0.001]
[1732949686567,0.3728,96687.0,96677.0,0.001]
[1732949686771,0.3738,96687.0,96678.0,0.1566]
[1732949688954,0.3738,96687.0,96675.0,0.412496]
[1732949689154,0.3738,96687.0,96676.0,0.15664]
[1732949690168,0.3728,96687.0,96677.0,0.051695]
[1732949690368,0.3718,96687.0,96678.0,0.15664]
[1732949691672,0.3718,96687.0,96677.0,0.051695]
[1732949691863,0.3718,96687.0,96678.0,0.15664]
[1732949692063,0.3728,96687.0,96678.0,0.15764]
[1732949692668,0.3738,96687.0,96678.0,0.209334]
[1732949693665,0.013,96687.0,96685.0,0.05169]
[1732949695677,0.015,96687.0,96685.0,0.05269]
[1732949695881,0.015,96687.0,96686.0,0.15664]
[1732949697066,0.009,96687.0,96686.0,0.15664]
[1732949697271,0.3608,96696.0,96688.0,0.051689]
[1732949697578,0.3608,96696.0,96686.0,0.15764]
[1732949697579,0.3608,96696.0,96689.0,0.051688]
[1732949698277,0.3608,96696.0,96690.0,0.051688]
[1732949698669,0.3668,96696.0,96690.0,0.051688]
[1732949698870,0.3758,96696.0,96691.0,0.051687]
[1732949699574,0.3768,96696.0,96691.0,0.051687]
[1732949700279,0.3698,96696.0,96690.0,0.001]
[1732949700472,0.3768,96696.0,96690.0,0.001]
[1732949700867,0.3768,96696.0,96692.0,0.051687]
[1732949701092,0.3768,96696.0,96694.0,0.051686]
[1732949701678,0.3678,96696.0,96694.0,0.051686]
[1732949701881,0.3698,96696.0,96694.0,0.051686]
[1732949702081,0.3768,96696.0,96694.0,0.051686]
[1732949702277,0.3768,96696.0,96695.0,0.00323275]
[1732949702672,0.3698,96696.0,96694.0,0.2367021]
[1732949702878,0.3778,96696.0,96694.0,0.2377021]
[1732949703175,0.3778,96696.0,96694.0,0.1860161]
[1732949703377,0.3688,96696.0,96692.0,0.051687]
[1732949703575,0.3778,96696.0,96695.0,0.001]
[1732949705179,0.3778,96696.0,96694.0,0.052685]
[1732949705774,0.3778,96696.0,96695.0,0.18692161]
[1732949705979,0.3778,96696.0,96695.0,0.18692122]
[1732949706481,0.3768,96696.0,96694.0,0.23860622]
[1732949706684,0.3688,96696.0,96694.0,0.23860622]
[1732949706981,0.3688,96696.0,96695.0,0.18590986]
[1732949706982,0.3718,96696.0,96695.0,0.18590986]
[1732949707170,0.3718,96696.0,96694.0,0.052685]
[1732949707372,0.3718,96696.0,96695.0,0.18587489]
[1732949708084,0.3728,96696.0,96695.0,0.18687489]
[1732949708281,0.3728,96696.0,96695.0,0.001]
[1732949709074,0.3738,96696.0,96694.0,0.051685]
[1732949709286,0.3738,96696.0,96695.0,0.001]
[1732949711777,0.3738,96696.0,96694.0,0.051685]
[1732949711986,0.3728,96696.0,96694.0,0.052685]
[1732949712181,0.3728,96696.0,96695.0,0.15216]
[1732949712582,0.3738,96696.0,96695.0,0.15316]
[1732949712788,0.3698,96696.0,96695.0,0.15316]
[1732949712979,0.3728,96696.0,96695.0,0.15216]
[1732949713184,0.3718,96696.0,96695.0,0.15216]
[1732949714780,0.3728,96696.0,96695.0,0.15316]
[1732949715281,0.3698,96696.0,96695.0,0.15316]
[1732949715587,0.3738,96696.0,96695.0,0.15316]
[1732949715786,0.3648,96696.0,96695.0,0.15216]
[1732949715988,0.3738,96696.0,96695.0,0.15316]
[1732949718494,0.3648,96696.0,96695.0,0.15216]
[1732949718789,0.3738,96696.0,96695.0,0.15316]
[1732949722589,0.013,96696.0,96695.0,0.15316]
[1732949725097,0.013,96696.0,96695.0,0.33903489]
[1732949725394,0.013,96696.0,96695.0,0.15316]
[1732949728402,0.3608,96718.0,96696.0,0.051685]
[1732949728604,0.0625,96732.0,96706.0,0.051679]
[1732949728795,0.0625,96732.0,96706.0,0.638239]
[1732949728991,0.0625,96732.0,96712.0,0.3608]
[1732949729195,0.0625,96732.0,96730.0,0.051666]
[1732949729393,0.0625,96732.0,96731.0,0.15212]
[1732949729804,0.06257573,96732.0,96731.0,0.15212]
[1732949730995,7.573e-05,96732.0,96731.0,0.15212]
[1732949731397,0.00407573,96732.0,96731.0,0.15212]
[1732949732206,0.01207573,96732.0,96731.0,0.15212]
[1732949732505,0.00407573,96732.0,96731.0,0.15212]
[1732949732706,0.01207573,96732.0,96731.0,0.15212]
[1732949732891,0.00807573,96732.0,96731.0,0.15212]
[1732949733101,0.01207573,96732.0,96731.0,0.15212]
[1732949734305,0.01307573,96732.0,96731.0,0.15312]
[1732949734798,0.01307573,96732.0,96731.0,0.15212]
[1732949734799,0.00407573,96732.0,96731.0,0.15212]
[1732949735000,0.01307573,96732.0,96731.0,0.15312]
[1732949735195,0.00907573,96732.0,96731.0,0.16546511]
[1732949735396,0.01307573,96732.0,96731.0,0.16546511]
[1732949736200,0.00407573,96732.0,96731.0,0.16446511]
[1732949736399,0.01307573,96732.0,96731.0,0.16546511]
[1732949737703,0.00907573,96732.0,96731.0,0.16546511]
[1732949737906,0.37387573,96732.0,96731.0,0.16546511]
[1732949738509,0.36987573,96732.0,96731.0,0.16546511]
[1732949738709,0.37387573,96732.0,96731.0,0.16546511]
[1732949741302,0.37387573,96732.0,96731.0,0.01334511]
[1732949741608,0.051671,96722.0,96704.0,0.19936]
[1732949741806,0.3608,96711.0,96704.0,0.19936]
[1732949742013,0.3608,96711.0,96706.0,0.051679]
[1732949742204,0.3608,96711.0,96705.0,0.01236227]
[1732949742506,0.3608,96711.0,96710.0,0.14923086]
[1732949742709,0.3608,96711.0,96710.0,0.15023086]
[1732949743718,0.3608,96711.0,96710.0,0.15123086]
[1732949744399,0.3678,96711.0,96710.0,0.14923086]
[1732949744607,0.3708,96711.0,96710.0,0.14923086]
[1732949745012,0.3718,96711.0,96710.0,0.14923086]
[1732949745415,0.3718,96711.0,96710.0,0.14768]
[1732949746116,0.3718,96711.0,96709.0,0.051677]
[1732949746410,0.3718,96711.0,96710.0,0.14768]
[1732949747104,0.3728,96711.0,96710.0,0.14768]
[1732949747614,0.3728,96711.0,96709.0,0.051677]
[1732949747801,0.3728,96711.0,96710.0,0.14768]
[1732949747802,0.3608,96711.0,96710.0,0.14768]
[1732949748006,0.3718,96711.0,96710.0,0.14768]
[1732949748402,0.011,96711.0,96710.0,0.14768]
[1732949748603,0.007,96711.0,96710.0,0.14768]
[1732949748809,0.011,96711.0,96710.0,0.14768]
[1732949750415,0.012,96711.0,96710.0,0.14768]
[1732949751509,0.012,96711.0,96710.0,0.199357]
[1732949752711,0.3728,96711.0,96710.0,0.199357]
[1732949752908,0.012,96711.0,96710.0,0.199357]
[1732949753309,0.3728,96711.0,96710.0,0.199357]
[1732949753512,0.3728,96711.0,96710.0,0.051677]
[1732949753814,0.3728,96711.0,96710.0,0.199357]
[1732949754120,0.3728,96711.0,96710.0,0.051677]
[1732949754419,0.3728,96711.0,96710.0,0.199357]
[1732949757217,0.3728,96711.0,96710.0,0.051677]
[1732949757514,0.3728,96711.0,96710.0,0.199357]
[1732949757722,0.3728,96711.0,96708.0,0.02068054]
[1732949758014,0.3728,96711.0,96709.0,0.14768]
[1732949759015,0.3638,96711.0,96709.0,0.14768]
[1732949759321,0.3718,96711.0,96709.0,0.14768]
[1732949759913,0.3718,96711.0,96708.0,0.02068054]
[1732949759914,0.3718,96711.0,96710.0,0.14768]
[1732949760513,0.3718,96711.0,96708.0,0.02068054]
[1732949760725,0.3728,96711.0,96710.0,0.14768]
[1732949761408,0.3688,96711.0,96710.0,0.14768]
[1732949761613,0.3728,96711.0,96710.0,0.14768]
[1732949761808,0.3718,96711.0,96710.0,0.14768]
[1732949763328,0.011,96711.0,96710.0,0.14768]
[1732949763512,0.012,96711.0,96710.0,0.14768]
[1732949766615,0.3608,96724.0,96710.0,0.14768]
[1732949766817,0.3608,96724.0,96714.0,0.06841487]
[1732949767023,0.3608,96724.0,96723.0,0.05167]
[1732949767219,0.3608,96724.0,96723.0,0.19647]
[1732949768130,0.3668,96724.0,96723.0,0.19647]
[1732949768724,0.3688,96724.0,96723.0,0.19647]
[1732949769115,0.3688,96724.0,96723.0,0.1448]
[1732949769430,0.3688,96724.0,96722.0,0.1448]
[1732949769726,0.0969,96723.0,96720.0,0.1448]
[1732949770822,0.1009,96723.0,96720.0,0.1448]
[1732949771022,0.1029,96723.0,96719.0,0.1448]
[1732949771427,0.1059,96723.0,96720.0,0.001]
[1732949771930,0.1079,96723.0,96720.0,0.001]
[1732949773628,0.1079,96723.0,96720.0,0.1448]
[1732949774330,0.1089,96723.0,96720.0,0.1458]
[1732949775638,0.1089,96723.0,96720.0,0.001]
[1732949775929,0.1089,96723.0,96715.0,0.01279312]
[1732949775930,0.051676,96712.0,96700.0,0.1448]
[1732949776136,0.3608,96704.0,96700.0,0.1448]
[1732949776333,0.3608,96704.0,96697.0,0.43488]
[1732949776525,0.3608,96704.0,96703.0,0.02223437]
[1732949778331,0.3608,96704.0,96703.0,0.00155069]
[1732949778732,0.3658,96704.0,96703.0,0.00155069]
[1732949779032,0.4627,96704.0,96703.0,0.00155069]
[1732949779536,0.4647,96704.0,96703.0,0.00255069]
[1732949780034,0.4627,96704.0,96703.0,0.00255069]
[1732949780337,0.4647,96704.0,96703.0,0.00255069]
[1732949785443,0.4647,96704.0,96697.0,0.01205287]
[1732949785444,0.051684,96699.0,96696.0,0.14484]
[1732949785653,0.051684,96698.0,96693.0,0.14484]
[1732949785943,0.3608,96694.0,96693.0,0.14484]
[1732949786641,0.3608,96694.0,96692.0,0.051687]
[1732949786842,0.3608,96694.0,96693.0,0.14484]
[1732949790642,0.3608,96694.0,96692.0,0.14484]
[1732949790843,0.412486,96694.0,96692.0,0.14484]
[1732949792939,0.412486,96694.0,96692.0,0.14584]
[1732949793246,0.412486,96694.0,96693.0,0.14484]
[1732949793740,0.412486,96694.0,96692.0,0.001]
[1732949793948,0.412486,96694.0,96693.0,0.14484]
[1732949795540,0.3608,96694.0,96685.0,0.05169]
[1732949795843,0.051687,96692.0,96688.0,0.14484]
[1732949796442,0.3608,96689.0,96688.0,0.14484]
[1732949797139,0.3608,96689.0,96687.0,0.02468368]
[1732949797339,0.3608,96689.0,96688.0,0.14404]
[1732949797747,0.3608,96689.0,96688.0,0.14604]
[1732949798240,0.3658,96689.0,96688.0,0.14504]
[1732949799649,0.3688,96689.0,96688.0,0.14404]
[1732949799854,0.3638,96689.0,96688.0,0.14404]
[1732949800052,0.3708,96689.0,96688.0,0.14504]
[1732949800349,0.3718,96689.0,96688.0,0.14504]
[1732949802852,0.423488,96689.0,96688.0,0.14504]
[1732949804847,0.423488,96689.0,96688.0,0.001]
[1732949805055,0.423488,96689.0,96688.0,0.14504]
[1732949806254,0.419488,96689.0,96688.0,0.14504]
[1732949806553,0.423488,96689.0,96688.0,0.14504]
[1732949808166,0.3718,96689.0,96688.0,0.14504]
[1732949808352,0.3608,96699.0,96688.0,0.14504]
[1732949808550,0.3608,96699.0,96689.0,0.07684311]
[1732949808852,0.3608,96699.0,96697.0,0.051684]
[1732949809049,0.3608,96699.0,96698.0,0.14404]
[1732949809458,0.3108,96699.0,96698.0,0.14404]
[1732949809647,0.3148,96699.0,96698.0,0.14404]
[1732949810053,0.3208,96699.0,96698.0,0.14404]
[1732949810258,0.3168,96699.0,96698.0,0.14404]
[1732949810458,0.3108,96699.0,96698.0,0.14404]
[1732949811160,0.3118,96699.0,96698.0,0.14404]
[1732949811559,0.3118,96699.0,96698.0,0.17484]
[1732949812860,0.3118,96699.0,96698.0,0.14404]
[1732949814266,0.3108,96699.0,96698.0,0.14404]
[1732949814451,0.3148,96699.0,96698.0,0.14404]
[1732949814651,0.3148,96699.0,96698.0,0.15615979]
[1732949817660,0.3148,96699.0,96698.0,0.17684683]
[1732949823064,0.3148,96699.0,96698.0,0.17680683]
[1732949823669,0.004,96699.0,96698.0,0.53760683]
[1732949825269,0.003,96699.0,96698.0,0.53760683]
[1732949826359,0.3608,96708.0,96698.0,0.53760683]
[1732949826554,0.001,96699.0,96698.0,0.63423394]
[1732949826756,0.001,96699.0,96698.0,0.58929083]
[1732949826964,0.3608,96708.0,96698.0,0.58925083]
[1732949827169,0.3608,96708.0,96698.0,0.63419394]
[1732949827170,0.001,96699.0,96698.0,0.63419394]
[1732949827362,0.001,96699.0,96698.0,0.58925083]
[1732949827568,0.0638,96707.0,96698.0,0.58925083]
[1732949827768,0.001,96699.0,96698.0,0.58925083]
[1732949828070,0.001,96699.0,96698.0,0.44529083]
[1732949828265,0.003,96699.0,96698.0,0.58925083]
[1732949829265,0.004,96699.0,96698.0,0.58925083]
[1732949830678,0.004,96699.0,96698.0,0.53756683]
[1732949830972,0.004,96699.0,96698.0,0.17676683]
[1732949831171,0.004,96699.0,96698.0,0.03280683]
[1732949831365,0.004,96699.0,96698.0,0.16464704]
[1732949831559,0.3648,96699.0,96698.0,0.16464704]
[1732949832168,0.3648,96699.0,96698.0,0.02068704]
[1732949832373,0.3648,96699.0,96698.0,0.16464704]
[1732949834977,0.416483,96699.0,96698.0,0.16464704]
[1732949835477,0.3648,96699.0,96698.0,0.16464704]
[1732949842475,0.3648,96699.0,96698.0,0.02068704]
[1732949842671,0.3648,96699.0,96698.0,0.16464704]
[1732949847271,0.007,96699.0,96698.0,0.16564704]
[1732949848372,0.009,96699.0,96698.0,0.16564704]
[1732949849078,0.006,96699.0,96698.0,0.16564704]
[1732949849277,0.009,96699.0,96698.0,0.16564704]
[1732949855077,0.009,96699.0,96698.0,0.02168704]
[1732949855282,0.009,96699.0,96698.0,0.16564704]
[1732949856886,0.009,96699.0,96698.0,0.02168704]
[1732949857083,0.009,96699.0,96698.0,0.16556704]
[1732949858878,0.009,96699.0,96698.0,0.19736704]
[1732949859076,0.009,96699.0,96698.0,0.23026704]
[1732949863076,0.009,96699.0,96698.0,0.19736704]